fUST/lending_fUST_20240919
["ID","MTS","AMOUNT","RATE_DAILY","PERIOD"]
[338484805,1726693841466,-404.91657728,0.00019178,2]
[338484806,1726693841476,-500.0,0.00019178,2]
[338484807,1726693841485,-500.0,0.00019178,2]
[338484808,1726693841494,-500.0,0.00019178,2]
[338484809,1726693841504,-621.69,0.00019178,2]
[338484810,1726693841513,-500.0,0.00019178,2]
[338484811,1726693841522,-500.0,0.00019178,2]
[338484812,1726693841532,-500.0,0.00019178,2]
[338484813,1726693841541,-1116.13,0.00019178,2]
[338484814,1726693841550,-564.5251086,0.00019178,2]
[338484815,1726693841560,-151.0,0.00019178,2]
[338484816,1726693841570,-1049.93,0.00019178,2]
[338484817,1726693841579,-500.0,0.00019178,2]
[338484818,1726693841589,-500.0,0.00019178,2]
[338484819,1726693841598,-457.48908483,0.00019178,2]
[338484820,1726693841607,-542.42,0.00019178,2]
[338484821,1726693841617,-611.37,0.00019178,2]
[338484822,1726693841626,-633.73,0.00019178,2]
[338484823,1726693841635,-500.0,0.00019178,2]
[338484824,1726693841645,-500.0,0.00019178,2]
[338484825,1726693841655,-267.80655226,0.00019178,2]
[338484826,1726693841664,-500.0,0.00019178,2]
[338484827,1726693841674,-500.0,0.00019178,2]
[338484828,1726693841683,-546.96,0.00019178,2]
[338484829,1726693841693,-500.0,0.00019178,2]
[338484830,1726693841702,-1004.067396,0.00019178,2]
[338484831,1726693841711,-500.0,0.00019178,2]
[338484832,1726693841721,-1843.59,0.00019178,2]
[338484833,1726693841730,-151.0,0.00019178,2]
[338484834,1726693841739,-571.48,0.00019178,2]
[338484835,1726693841749,-1004.067396,0.00019178,2]
[338484836,1726693841758,-500.0,0.00019178,2]
[338484837,1726693841768,-151.0,0.00019178,2]
[338484838,1726693841777,-151.0,0.00019178,2]
[338484839,1726693841787,-500.0,0.00019178,2]
[338484840,1726693841796,-436.99122357,0.00019178,2]
[338484841,1726693841806,-1410.44,0.00019178,2]
[338484842,1726693841815,-1297.4,0.00019178,2]
[338484843,1726693841824,-151.0,0.00019178,2]
[338484844,1726693841833,-500.0,0.00019178,2]
[338484845,1726693841843,-151.0,0.00019178,2]
[338484846,1726693841853,-500.0,0.00019178,2]
[338484847,1726693841862,-151.0,0.00019178,2]
[338484848,1726693841871,-500.0,0.00019178,2]
[338484849,1726693841880,-151.0,0.00019178,2]
[338484850,1726693841890,-500.0,0.00019178,2]
[338484851,1726693841902,-500.0,0.00019178,2]
[338484852,1726693841912,-1294.62,0.00019178,2]
[338484853,1726693841921,-500.0,0.00019178,2]
[338484854,1726693841931,-500.0,0.00019178,2]
[338484855,1726693841942,-500.0,0.00019178,2]
[338484856,1726693841951,-151.0,0.00019178,2]
[338484857,1726693841961,-500.0,0.00019178,2]
[338484858,1726693841971,-500.0,0.00019178,2]
[338484859,1726693841980,-500.0,0.00019178,2]
[338484860,1726693841990,-500.0,0.00019178,2]
[338484861,1726693842000,-500.0,0.00019178,2]
[338484862,1726693842010,-500.0,0.00019178,2]
[338484863,1726693842020,-500.0,0.00019178,2]
[338484864,1726693842030,-500.0,0.00019178,2]
[338484865,1726693842256,-306.67642742,0.00019178,2]
[338484866,1726693842268,-500.0,0.00019178,2]
[338484867,1726693842278,-1800.24,0.00019178,2]
[338484868,1726693842288,-819.457897,0.00019178,2]
[338484869,1726693842298,-501.7,0.00019178,2]
[338484870,1726693842307,-500.0,0.00019178,2]
[338484871,1726693842317,-695.63,0.00019178,2]
[338484872,1726693842326,-819.457897,0.00019178,2]
[338484873,1726693842337,-500.0,0.00019178,2]
[338484874,1726693842347,-500.0,0.00019178,2]
[338484875,1726693842357,-500.0,0.00019178,2]
[338484876,1726693842368,-597.97,0.00019178,2]
[338484877,1726693842379,-500.0,0.00019178,2]
[338484878,1726693842389,-500.0,0.00019178,2]
[338484879,1726693842400,-500.0,0.00019178,2]
[338484880,1726693842410,-500.0,0.00019178,2]
[338484881,1726693842419,-500.0,0.00019178,2]
[338484882,1726693842430,-1203.85,0.00019178,2]
[338484883,1726693842443,-500.0,0.00019178,2]
[338484884,1726693842466,-534.47,0.00019178,2]
[338484885,1726693842487,-1480.82,0.00019178,2]
[338484886,1726693842509,-153.114606,0.00019178,2]
[338484887,1726693842530,-500.0,0.00019178,2]
[338484888,1726693842552,-500.0,0.00019178,2]
[338484889,1726693842574,-512.16347041,0.00019178,2]
[338484890,1726693842597,-621.57,0.00019178,2]
[338484891,1726693842618,-500.0,0.00019178,2]
[338484892,1726693842628,-500.0,0.00019178,2]
[338484893,1726693842637,-617.74,0.00019178,2]
[338484894,1726693842650,-971.08,0.00019178,2]
[338484895,1726693842660,-500.0,0.00019178,2]
[338484896,1726693842669,-435.42923858,0.00019178,2]
[338484897,1726693842679,-843.89,0.00019178,2]
[338484898,1726693842689,-500.0,0.00019178,2]
[338484899,1726693842699,-914.82,0.00019178,2]
[338484900,1726693842708,-500.0,0.00019178,2]
[338484901,1726693842719,-500.0,0.00019178,2]
[338484902,1726693842728,-500.0,0.00019178,2]
[338484903,1726693842738,-500.0,0.00019178,2]
[338484904,1726693842749,-2225.98,0.00019178,2]
[338484905,1726693842759,-500.0,0.00019178,2]
[338484906,1726693842768,-500.0,0.00019178,2]
[338484907,1726693842778,-261.40377493,0.00019178,2]
[338484908,1726693842787,-500.0,0.00019178,2]
[338484909,1726693842797,-500.0,0.00019178,2]
[338484910,1726693842807,-214.0495127,0.00019178,2]
[338484911,1726693842816,-500.0,0.00019178,2]
[338484912,1726693842826,-500.0,0.00019178,2]
[338484913,1726693842835,-500.0,0.00019178,2]
[338484914,1726693842845,-1851.45,0.00019178,2]
[338484915,1726693842855,-500.0,0.00019178,2]
[338484916,1726693842864,-624.9061765,0.00019178,2]
[338484917,1726693842874,-1743.88,0.00019178,2]
[338484918,1726693842883,-500.0,0.00019178,2]
[338484919,1726693842893,-500.0,0.00019178,2]
[338484920,1726693842903,-500.0,0.00019178,2]
[338484921,1726693842912,-500.0,0.00019178,2]
[338484922,1726693842922,-1962.9,0.00019178,2]
[338484923,1726693842931,-500.0,0.00019178,2]
[338484924,1726693842941,-500.0,0.00019178,2]
[338484925,1726693842950,-500.0,0.00019178,2]
[338484926,1726693842960,-500.0,0.00019178,2]
[338484928,1726693842970,-543.78,0.00019178,2]
[338484929,1726693842979,-500.0,0.00019178,2]
[338484930,1726693842988,-500.0,0.00019178,2]
[338484932,1726693842997,-500.0,0.00019178,2]
[338484934,1726693843006,-1702.33,0.00019178,2]
[338484936,1726693843016,-500.0,0.00019178,2]
[338484938,1726693843025,-1574.95,0.00019178,2]
[338484939,1726693843035,-500.0,0.00019178,2]
[338484940,1726693843045,-500.0,0.00019178,2]
[338484942,1726693843054,-512.85,0.00019178,2]
[338484944,1726693843064,-500.0,0.00019178,2]
[338484946,1726693843073,-500.0,0.00019178,2]
[338484947,1726693843082,-660.46,0.00019178,2]
[338484949,1726693843092,-500.0,0.00019178,2]
[338484950,1726693843102,-1309.04,0.00019178,2]
[338484951,1726693843115,-500.0,0.00019178,2]
[338484952,1726693843125,-151.0,0.00019178,2]
[338484953,1726693843134,-151.0,0.00019178,2]
[338484954,1726693843146,-500.0,0.00019178,2]
[338484955,1726693843156,-500.0,0.00019178,2]
[338484956,1726693843166,-499.77843303,0.00019178,2]
[338484957,1726693843176,-2343.06,0.00019178,2]
[338484958,1726693843186,-1251.64,0.00019178,2]
[338484959,1726693843196,-500.0,0.00019178,2]
[338484960,1726693843206,-500.0,0.00019178,2]
[338484961,1726693843215,-435.328068,0.00019178,2]
[338484962,1726693843225,-500.0,0.00019178,2]
[338484963,1726693843235,-500.0,0.00019178,2]
[338484964,1726693843245,-435.328068,0.00019178,2]
[338484965,1726693843254,-500.0,0.00019178,2]
[338484966,1726693843264,-500.0,0.00019178,2]
[338484967,1726693843274,-999.33,0.00019178,2]
[338484968,1726693843283,-500.0,0.00019178,2]
[338484969,1726693843292,-500.0,0.00019178,2]
[338484970,1726693843302,-500.0,0.00019178,2]
[338484971,1726693843311,-500.0,0.00019178,2]
[338484972,1726693843320,-500.0,0.00019178,2]
[338484973,1726693843329,-892.18,0.00019178,2]
[338484974,1726693843338,-500.0,0.00019178,2]
[338484975,1726693843348,-500.0,0.00019178,2]
[338484976,1726693843357,-623.1,0.00019178,2]
[338484977,1726693843366,-500.0,0.00019178,2]
[338484978,1726693843375,-500.0,0.00019178,2]
[338484979,1726693843385,-435.328068,0.00019178,2]
[338484980,1726693843396,-363.17378921,0.00019178,2]
[338484981,1726693843405,-435.328068,0.00019178,2]
[338484982,1726693843415,-500.0,0.00019178,2]
[338484983,1726693843425,-500.0,0.00019178,2]
[338484984,1726693843436,-500.0,0.00019178,2]
[338484985,1726693843445,-500.0,0.00019178,2]
[338484986,1726693843455,-500.0,0.00019178,2]
[338484987,1726693843464,-500.0,0.00019178,2]
[338484988,1726693843474,-500.0,0.00019178,2]
[338484989,1726693843484,-500.0,0.00019178,2]
[338484990,1726693843493,-500.0,0.00019178,2]
[338484991,1726693843503,-500.0,0.00019178,2]
[338484992,1726693843512,-500.0,0.00019178,2]
[338484993,1726693843522,-629.74,0.00019178,2]
[338484994,1726693843531,-500.0,0.00019178,2]
[338484995,1726693843541,-424.41784752,0.00019178,2]
[338484996,1726693843550,-500.0,0.00019178,2]
[338484997,1726693843560,-511.53445351,0.00019178,2]
[338484998,1726693843569,-350.14,0.00019178,2]
[338484999,1726693843579,-500.0,0.00019178,2]
[338485000,1726693843588,-500.0,0.00019178,2]
[338485001,1726693843598,-2270.92,0.00019178,2]
[338485002,1726693843607,-978.3,0.00019178,2]
[338485003,1726693843617,-863.45,0.00019178,2]
[338485004,1726693843626,-500.0,0.00019178,2]
[338485005,1726693843635,-905.15,0.00019178,2]
[338485006,1726693843644,-525.07481478,0.00019178,2]
[338485007,1726693843654,-1198.4,0.00019178,2]
[338485008,1726693843664,-500.0,0.00019178,2]
[338485009,1726693843673,-500.0,0.00019178,2]
[338485010,1726693843682,-500.0,0.00019178,2]
[338485011,1726693843691,-587.89,0.00019178,2]
[338485012,1726693843700,-500.0,0.00019178,2]
[338485013,1726693843710,-1507.24,0.00019178,2]
[338485014,1726693843721,-500.0,0.00019178,2]
[338485015,1726693843730,-500.0,0.00019178,2]
[338485016,1726693843740,-500.0,0.00019178,2]
[338485017,1726693843749,-483.965587,0.00019178,2]
[338485018,1726693843759,-500.0,0.00019178,2]
[338485019,1726693843768,-500.0,0.00019178,2]
[338485020,1726693843778,-483.965587,0.00019178,2]
[338485021,1726693843789,-500.0,0.00019178,2]
[338485022,1726693843798,-483.965587,0.00019178,2]
[338485023,1726693843809,-500.0,0.00019178,2]
[338485024,1726693843818,-500.0,0.00019178,2]
[338485025,1726693843827,-500.0,0.00019178,2]
[338485026,1726693843837,-500.0,0.00019178,2]
[338485027,1726693843846,-500.0,0.00019178,2]
[338485028,1726693843855,-500.0,0.00019178,2]
[338485029,1726693843865,-500.0,0.00019178,2]
[338485030,1726693843875,-1431.61,0.00019178,2]
[338485031,1726693843884,-500.0,0.00019178,2]
[338485032,1726693843894,-500.0,0.00019178,2]
[338485033,1726693843903,-483.965587,0.00019178,2]
[338485034,1726693843912,-500.0,0.00019178,2]
[338485035,1726693843922,-483.965587,0.00019178,2]
[338485036,1726693843932,-500.0,0.00019178,2]
[338485037,1726693843941,-483.965587,0.00019178,2]
[338485038,1726693843951,-500.0,0.00019178,2]
[338485039,1726693843961,-649.43499826,0.00019178,2]
[338485040,1726693843971,-1310.62,0.00019178,2]
[338485041,1726693843981,-618.04,0.00019178,2]
[338485042,1726693843990,-500.0,0.00019178,2]
[338485043,1726693844000,-641.58,0.00019178,2]
[338485044,1726693844009,-769.59,0.00019178,2]
[338485045,1726693844019,-500.0,0.00019178,2]
[338485046,1726693844029,-500.0,0.00019178,2]
[338485047,1726693844038,-500.0,0.00019178,2]
[338485048,1726693844048,-500.0,0.00019178,2]
[338485049,1726693844058,-1806.92,0.00019178,2]
[338485050,1726693844068,-500.0,0.00019178,2]
[338485051,1726693844077,-648.53680776,0.00019178,2]
[338485052,1726693844087,-500.0,0.00019178,2]
[338485053,1726693844097,-491.94,0.00019178,2]
[338485054,1726693844109,-669.46,0.00019178,2]
[338485055,1726693844120,-741.33,0.00019178,2]
[338485056,1726693844129,-500.0,0.00019178,2]
[338485057,1726693844139,-1686.98,0.00019178,2]
[338485058,1726693844152,-500.0,0.00019178,2]
[338485059,1726693844163,-2847.73,0.00019178,2]
[338485060,1726693844173,-791.29,0.00019178,2]
[338485061,1726693844185,-431.441097,0.00019178,2]
[338485062,1726693844194,-431.441097,0.00019178,2]
[338485063,1726693844203,-431.441097,0.00019178,2]
[338485064,1726693844213,-500.0,0.00019178,2]
[338485065,1726693844223,-431.441097,0.00019178,2]
[338485066,1726693844233,-431.441097,0.00019178,2]
[338485067,1726693844244,-500.0,0.00019178,2]
[338485068,1726693844253,-431.441097,0.00019178,2]
[338485069,1726693844263,-1085.12555906,0.00019178,2]
[338485071,1726693845479,-37.93693245,0.00019178,2]
[338485329,1726694744156,-432.105885,0.00017808,2]
[338485330,1726694744178,-514.48097012,0.00017892,2]
[338485331,1726694744200,-361.14989236,0.00017954,2]
[338485369,1726695032523,-486.724949,0.00017808,2]
[338485370,1726695032533,-470.69942711,0.00017892,2]
[338485371,1726695032544,-470.69942692,0.00017953,2]
[338485372,1726695032553,-472.86096307,0.00017992,2]
[338485373,1726695032573,-1681.68938413,0.00017992,2]
[338485374,1726695032582,-470.69942692,0.00018015,2]
[338485375,1726695032592,-470.69942692,0.00018076,2]
[338485376,1726695032601,-470.69942692,0.00018137,2]
[338485377,1726695032611,-470.69942692,0.00018199,2]
[338485378,1726695032620,-470.69942692,0.0001826,2]
[338485379,1726695032629,-470.69942692,0.00018322,2]
[338485380,1726695032638,-206.8451667,0.00018378,2]
[338485381,1726695032648,-470.69942692,0.00018383,2]
[338485382,1726695032657,-885.84441877,0.00018389,2]
[338485383,1726695032666,-208.739459,0.000184,2]
[338485384,1726695032676,-470.69942692,0.00018444,2]
[338485385,1726695032685,-470.69942692,0.00018506,2]
[338485386,1726695032695,-470.69942692,0.00018567,2]
[338485387,1726695032704,-300.0,0.00018627,2]
[338485388,1726695032714,-300.0,0.00018627,2]
[338485389,1726695032723,-470.69942692,0.00018628,2]
[338485390,1726695032732,-470.69942692,0.0001869,2]
[338485391,1726695032960,-470.69942692,0.00018751,2]
[338485392,1726695032970,-470.69942692,0.00018813,2]
[338485393,1726695032979,-470.69942692,0.00018874,2]
[338485394,1726695032989,-208.739459,0.000189,2]
[338485395,1726695032999,-470.69942692,0.00018935,2]
[338485396,1726695033008,-470.69942692,0.00018997,2]
[338485397,1726695033018,-470.69942692,0.00019058,2]
[338485398,1726695033027,-682.55289342,0.00019078,2]
[338485399,1726695033036,-162.52,0.00019147,3]
[338485400,1726695033045,-487.61,0.00019147,3]
[338485401,1726695033055,-13222.452164,0.00019148,3]
[338485402,1726695033065,-34208.4571367,0.00019148,3]
[338485404,1726695033074,-13222.452164,0.00019157,3]
[338485407,1726695033084,-2622.35453378,0.00019157,3]
[338485474,1726695040482,-6032.5,0.00019157,3]
[338485477,1726695040566,-25553.60260292,0.00019157,3]
[338485478,1726695040575,-215.17375876,0.00019157,2]
[338485480,1726695040584,-500.0,0.00019157,2]
[338485482,1726695040593,-180.49747823,0.00019157,2]
[338485484,1726695040604,-500.0,0.00019157,2]
[338485485,1726695040614,-628.83099802,0.00019157,2]
[338485487,1726695040625,-92557.1651481,0.00019158,3]
[338485488,1726695040633,-205250.74282,0.00019158,3]
[338485490,1726695040643,-13222.452164,0.00019165,3]
[338485492,1726695040652,-79334.7129841,0.00019168,3]
[338485494,1726695040661,-157.16511612,0.00019168,2]
[338485496,1726695040672,-500.76551568,0.00019173,2]
[338485497,1726695040681,-500.0,0.00019173,2]
[338485499,1726695040693,-500.0,0.00019173,2]
[338485501,1726695040703,-500.0,0.00019173,2]
[338485503,1726695040715,-500.0,0.00019173,2]
[338485511,1726695040930,-500.0,0.00019173,2]
[338485513,1726695040946,-500.0,0.00019173,2]
[338485515,1726695040955,-500.0,0.00019173,2]
[338485517,1726695040965,-500.0,0.00019173,2]
[338485519,1726695040975,-500.0,0.00019173,2]
[338485520,1726695040985,-500.0,0.00019173,2]
[338485522,1726695040994,-500.0,0.00019173,2]
[338485524,1726695041004,-500.0,0.00019173,2]
[338485526,1726695041014,-500.0,0.00019173,2]
[338485528,1726695041023,-41108.43333422,0.00019175,2]
[338485530,1726695041032,-409.89270062,0.00019177,2]
[338485531,1726695041041,-9184.44147031,0.00019177,2]
[338485533,1726695041051,-160.0,0.00019177,2]
[338485535,1726695041061,-10106.77252928,0.00019178,5]
[338485536,1726695041070,-860.27906057,0.00019178,5]
[338485537,1726695041079,-972.5,0.00019178,2]
[338485538,1726695041088,-220.858534,0.00019178,2]
[338485539,1726695041098,-226.974859,0.00019178,2]
[338485540,1726695041107,-151.0,0.00019178,2]
[338485541,1726695041117,-151.0,0.00019178,2]
[338485542,1726695041126,-151.0,0.00019178,2]
[338485543,1726695041135,-151.0,0.00019178,2]
[338485544,1726695041144,-500.0,0.00019178,2]
[338485545,1726695041154,-500.0,0.00019178,2]
[338485546,1726695041163,-500.0,0.00019178,2]
[338485547,1726695041173,-500.0,0.00019178,2]
[338485548,1726695041182,-500.0,0.00019178,2]
[338485549,1726695041191,-500.0,0.00019178,2]
[338485550,1726695041201,-501.67129401,0.00019178,2]
[338485551,1726695041211,-500.0,0.00019178,2]
[338485552,1726695041220,-151.0,0.00019178,2]
[338485553,1726695041230,-500.0,0.00019178,2]
[338485554,1726695041239,-299.314941,0.00019178,2]
[338485555,1726695041249,-500.0,0.00019178,2]
[338485556,1726695041258,-500.0,0.00019178,2]
[338485557,1726695041270,-500.0,0.00019178,2]
[338485558,1726695041280,-151.0,0.00019178,2]
[338485559,1726695041289,-151.0,0.00019178,2]
[338485560,1726695041298,-151.0,0.00019178,2]
[338485561,1726695041308,-151.0,0.00019178,2]
[338485562,1726695041318,-151.0,0.00019178,2]
[338485563,1726695041328,-500.0,0.00019178,2]
[338485564,1726695041337,-151.0,0.00019178,2]
[338485565,1726695041346,-151.0,0.00019178,2]
[338485566,1726695041355,-151.0,0.00019178,2]
[338485567,1726695041365,-172.948101,0.00019178,2]
[338485568,1726695041375,-500.0,0.00019178,2]
[338485569,1726695041384,-500.0,0.00019178,2]
[338485570,1726695041394,-1251.64,0.00019178,2]
[338485571,1726695041404,-500.0,0.00019178,2]
[338485572,1726695041414,-500.0,0.00019178,2]
[338485573,1726695041424,-151.0,0.00019178,2]
[338485574,1726695041434,-500.0,0.00019178,2]
[338485575,1726695041443,-151.0,0.00019178,2]
[338485576,1726695041453,-151.0,0.00019178,2]
[338485577,1726695041465,-151.0,0.00019178,2]
[338485578,1726695041474,-151.0,0.00019178,2]
[338485579,1726695041484,-500.0,0.00019178,2]
[338485580,1726695041493,-334.0,0.00019178,2]
[338485581,1726695041503,-500.0,0.00019178,2]
[338485582,1726695041513,-500.0,0.00019178,2]
[338485583,1726695041523,-500.0,0.00019178,2]
[338485584,1726695041532,-500.0,0.00019178,2]
[338485585,1726695041544,-737.01,0.00019178,2]
[338485586,1726695041553,-500.0,0.00019178,2]
[338485587,1726695041563,-621.57,0.00019178,2]
[338485588,1726695041572,-500.0,0.00019178,2]
[338485589,1726695041582,-500.0,0.00019178,2]
[338485590,1726695041591,-500.0,0.00019178,2]
[338485591,1726695041600,-500.0,0.00019178,2]
[338485592,1726695041610,-500.0,0.00019178,2]
[338485593,1726695041620,-500.0,0.00019178,2]
[338485594,1726695041629,-500.0,0.00019178,2]
[338485595,1726695041638,-500.0,0.00019178,2]
[338485596,1726695041647,-710.61,0.00019178,2]
[338485597,1726695041656,-500.0,0.00019178,2]
[338485598,1726695041666,-500.0,0.00019178,2]
[338485599,1726695041676,-500.0,0.00019178,2]
[338485600,1726695041685,-500.0,0.00019178,2]
[338485601,1726695041695,-500.0,0.00019178,2]
[338485602,1726695041704,-500.0,0.00019178,2]
[338485603,1726695041713,-500.0,0.00019178,2]
[338485604,1726695041722,-500.0,0.00019178,2]
[338485605,1726695041732,-500.0,0.00019178,2]
[338485606,1726695041742,-500.0,0.00019178,2]
[338485607,1726695041751,-500.0,0.00019178,2]
[338485608,1726695041762,-500.0,0.00019178,2]
[338485609,1726695041771,-500.0,0.00019178,2]
[338485610,1726695041780,-500.0,0.00019178,2]
[338485611,1726695041792,-500.0,0.00019178,2]
[338485612,1726695041803,-500.0,0.00019178,2]
[338485613,1726695041812,-649.43499826,0.00019178,2]
[338485614,1726695041822,-624.9061765,0.00019178,2]
[338485615,1726695041831,-500.0,0.00019178,2]
[338485616,1726695041840,-504.96,0.00019178,2]
[338485617,1726695041849,-500.0,0.00019178,2]
[338485618,1726695041859,-500.0,0.00019178,2]
[338485619,1726695041868,-500.0,0.00019178,2]
[338485620,1726695041877,-1372.34,0.00019178,2]
[338485621,1726695041887,-408.00461626,0.00019178,2]
[338485622,1726695041896,-846.22,0.00019178,2]
[338485623,1726695041905,-591.5,0.00019178,2]
[338485624,1726695041914,-543.78,0.00019178,2]
[338485625,1726695041923,-500.0,0.00019178,2]
[338485626,1726695041933,-500.0,0.00019178,2]
[338485627,1726695041941,-500.0,0.00019178,2]
[338485628,1726695041951,-500.0,0.00019178,2]
[338485629,1726695041960,-1806.92,0.00019178,2]
[338485630,1726695041969,-500.0,0.00019178,2]
[338485631,1726695041978,-500.0,0.00019178,2]
[338485632,1726695041987,-500.0,0.00019178,2]
[338485633,1726695041997,-885.71,0.00019178,2]
[338485634,1726695042006,-184.50652819,0.00019178,2]
[338485635,1726695042015,-500.0,0.00019178,2]
[338485636,1726695042025,-500.0,0.00019178,2]
[338485637,1726695042034,-545.573281,0.00019178,2]
[338485638,1726695042043,-545.573281,0.00019178,2]
[338485639,1726695042052,-545.573281,0.00019178,2]
[338485640,1726695042062,-545.573281,0.00019178,2]
[338485641,1726695042071,-545.573281,0.00019178,2]
[338485642,1726695042080,-519.67,0.00019178,2]
[338485643,1726695042089,-500.0,0.00019178,2]
[338485644,1726695042098,-500.0,0.00019178,2]
[338485645,1726695042107,-545.573281,0.00019178,2]
[338485646,1726695042116,-545.573281,0.00019178,2]
[338485647,1726695042126,-545.573281,0.00019178,2]
[338485648,1726695042135,-545.573281,0.00019178,2]
[338485649,1726695042144,-545.573281,0.00019178,2]
[338485650,1726695042153,-500.0,0.00019178,2]
[338485651,1726695042162,-500.0,0.00019178,2]
[338485652,1726695042171,-500.0,0.00019178,2]
[338485653,1726695042180,-911.19,0.00019178,2]
[338485654,1726695042189,-883.36,0.00019178,2]
[338485655,1726695042200,-500.0,0.00019178,2]
[338485656,1726695042209,-1156.74,0.00019178,2]
[338485657,1726695042218,-500.0,0.00019178,2]
[338485658,1726695042227,-1186.67,0.00019178,2]
[338485659,1726695042236,-500.0,0.00019178,2]
[338485660,1726695042245,-500.0,0.00019178,2]
[338485661,1726695042255,-500.0,0.00019178,2]
[338485662,1726695042265,-151.0,0.00019178,2]
[338485663,1726695042274,-500.0,0.00019178,2]
[338485664,1726695042283,-151.0,0.00019178,2]
[338485665,1726695042292,-268.138456,0.00019178,2]
[338485666,1726695042301,-628.798641,0.00019178,2]
[338485667,1726695042310,-628.798641,0.00019178,2]
[338485668,1726695042320,-500.0,0.00019178,2]
[338485669,1726695042329,-628.798641,0.00019178,2]
[338485670,1726695042338,-628.798641,0.00019178,2]
[338485671,1726695042347,-500.0,0.00019178,2]
[338485672,1726695042356,-628.798641,0.00019178,2]
[338485673,1726695042365,-1362.49,0.00019178,2]
[338485674,1726695042375,-500.0,0.00019178,2]
[338485675,1726695042384,-628.798641,0.00019178,2]
[338485676,1726695042393,-924.09,0.00019178,2]
[338485677,1726695042402,-151.0,0.00019178,2]
[338485678,1726695042411,-151.0,0.00019178,2]
[338485679,1726695042420,-2376.53,0.00019178,2]
[338485680,1726695042429,-151.0,0.00019178,2]
[338485681,1726695042438,-151.0,0.00019178,2]
[338485682,1726695042447,-151.0,0.00019178,2]
[338485683,1726695042457,-628.798641,0.00019178,2]
[338485684,1726695042471,-628.798641,0.00019178,2]
[338485685,1726695042479,-628.798641,0.00019178,2]
[338485686,1726695042488,-628.798641,0.00019178,2]
[338485687,1726695042497,-628.798641,0.00019178,2]
[338485688,1726695042509,-628.798641,0.00019178,2]
[338485689,1726695042519,-500.0,0.00019178,2]
[338485690,1726695042528,-500.0,0.00019178,2]
[338485691,1726695042538,-547.26,0.00019178,2]
[338485692,1726695042547,-500.0,0.00019178,2]
[338485693,1726695042556,-525.07481478,0.00019178,2]
[338485694,1726695042565,-500.0,0.00019178,2]
[338485695,1726695042575,-500.0,0.00019178,2]
[338485696,1726695042584,-591.89,0.00019178,2]
[338485697,1726695042593,-500.0,0.00019178,2]
[338485698,1726695042603,-516.37,0.00019178,2]
[338485699,1726695042612,-500.0,0.00019178,2]
[338485700,1726695042621,-500.0,0.00019178,2]
[338485701,1726695042630,-500.0,0.00019178,2]
[338485702,1726695042640,-500.0,0.00019178,2]
[338485703,1726695042649,-500.0,0.00019178,2]
[338485704,1726695042658,-500.0,0.00019178,2]
[338485705,1726695042667,-500.0,0.00019178,2]
[338485706,1726695042677,-500.0,0.00019178,2]
[338485707,1726695042687,-500.0,0.00019178,2]
[338485708,1726695042697,-500.0,0.00019178,2]